bitfinex/quotes_SOLUSD_20240726
["timestamp","ask_amount","ask_price","bid_price","bid_amount"]
[1722015155950,45.17,182.93,182.9,5.4673]
[1722015156246,50.6365,182.93,182.88,13.6698]
[1722015156429,45.94,182.92,182.88,13.6698]
[1722015156748,50.4671,182.91,182.85,6.5399]
[1722015156954,0.17,182.9,182.87,5.4681]
[1722015157335,0.17,182.9,182.88,5.4679]
[1722015158252,20.0,182.94,182.88,13.6697]
[1722015159051,25.4663,182.94,182.89,5.4675]
[1722015159435,5.4666,182.93,182.89,5.4675]
[1722015159758,5.4666,182.93,182.88,19.1376]
[1722015159938,45.17,182.92,182.88,19.1376]
[1722015160148,45.17,182.92,182.9,5.4674]
[1722015160345,45.0,182.91,182.9,5.4674]
[1722015162970,45.0,182.91,182.89,5.4676]
[1722015163149,45.0,182.91,182.85,20.2119]
[1722015163455,0.17,182.9,182.87,5.4683]
[1722015164659,0.17,182.9,182.88,5.4679]
[1722015164848,0.17,182.9,182.89,5.4677]
[1722015165050,45.0,182.91,182.9,5.4674]
[1722015165565,25.94,182.95,182.89,13.669]
[1722015165747,0.17,182.94,182.91,5.4671]
[1722015166364,0.17,182.94,182.92,5.4668]
[1722015166668,0.17,182.94,182.91,5.4671]
[1722015166840,45.17,182.94,182.91,5.4671]
[1722015167236,0.17,182.94,182.92,5.4668]
[1722015167436,25.94,182.95,182.92,5.4668]
[1722015167864,45.94,182.95,182.89,13.669]
[1722015168045,0.17,182.94,182.89,13.669]
[1722015168662,45.17,182.94,182.89,13.669]
[1722015168957,45.17,182.94,182.9,5.4673]
[1722015169770,45.17,182.94,182.91,5.4671]
[1722015170368,45.17,182.94,182.9,5.4673]
[1722015170542,50.6362,182.94,182.9,5.4673]
[1722015170739,50.6362,182.94,182.86,13.6713]
[1722015170740,20.0,182.92,182.86,13.6713]
[1722015171043,45.17,182.91,182.87,5.4683]
[1722015171242,45.17,182.91,182.88,5.468]
[1722015171544,45.17,182.91,182.87,5.4683]
[1722015172067,50.6372,182.91,182.87,5.4682]
[1722015172242,50.6372,182.91,182.86,19.1397]
[1722015172440,50.6372,182.91,182.86,19.1399]
[1722015172643,50.6372,182.91,182.86,13.6713]
[1722015172870,45.17,182.91,182.87,5.4683]
[1722015173367,45.17,182.91,182.86,13.6713]
[1722015173975,45.17,182.91,182.89,5.4675]
[1722015174147,45.17,182.91,182.9,5.4674]
[1722015174348,45.17,182.91,182.89,5.4677]
[1722015175061,12.95,182.9,182.89,5.4677]
[1722015175261,57.95,182.9,182.89,5.4677]
[1722015175443,58.12,182.9,182.88,13.6696]
[1722015175649,77.95,182.89,182.88,13.6696]
[1722015175955,58.12,182.89,182.87,5.4683]
[1722015176148,12.95,182.88,182.87,5.4683]
[1722015176349,58.12,182.88,182.87,5.4683]
[1722015177178,57.95,182.88,182.87,5.4683]
[1722015180761,12.95,182.88,182.87,5.4683]
[1722015181653,57.95,182.88,182.87,5.4683]
[1722015182180,12.95,182.88,182.87,5.4683]
[1722015183289,12.95,182.9,182.86,1.09361335]
[1722015183667,12.95,182.9,182.89,19.1371]
[1722015186270,57.95,182.9,182.89,19.1371]
[1722015188178,20.0,182.96,182.92,13.6671]
[1722015188487,12.95,182.93,182.92,19.1339]
[1722015189382,12.95,182.94,182.93,19.1329]
[1722015191266,57.95,182.94,182.93,19.1329]
[1722015191479,57.95,182.94,182.91,5.4669]
[1722015191682,12.95,182.92,182.91,5.4669]
[1722015191888,57.95,182.92,182.91,5.4669]
[1722015192183,0.17,182.95,182.89,1.09345755]
[1722015192382,45.17,182.96,182.93,5.4665]
[1722015192594,45.0,182.96,182.94,5.4662]
[1722015192773,45.0,182.96,182.95,5.4659]
[1722015194084,5.4645,183.0,182.95,5.4659]
[1722015194257,12.95,182.96,182.95,5.4659]
[1722015195257,57.95,182.96,182.95,5.4659]
[1722015197890,12.95,182.96,182.95,5.4659]
[1722015198266,12.95,182.96,182.94,13.665]
[1722015198468,57.95,182.95,182.94,13.665]
[1722015198667,57.95,182.95,182.91,27.3349]
[1722015198668,57.95,182.95,182.91,13.6678]
[1722015198874,12.95,182.92,182.91,13.6678]
[1722015199069,57.95,182.92,182.91,13.6678]
[1722015200112,57.95,182.92,182.91,19.1349]
[1722015200684,57.95,182.92,182.91,13.6678]
[1722015201290,57.95,182.92,182.89,5.4676]
[1722015201500,57.95,182.92,182.88,35.7774]
[1722015201501,45.17,182.91,182.9,5.4674]
[1722015201673,45.0,182.91,182.88,41.2451]
[1722015201874,12.95,182.89,182.88,41.2451]
[1722015202094,57.95,182.89,182.88,41.2451]
[1722015202293,20.0,183.0,182.91,27.3348]
[1722015202475,12.95,182.94,182.91,27.3348]
[1722015202800,12.95,182.93,182.92,6.560074]
[1722015202967,12.95,182.93,182.92,6.56007842]
[1722015203166,12.95,182.93,182.92,19.1339]
[1722015205179,57.95,182.93,182.91,5.4671]
[1722015205499,57.95,182.92,182.91,5.4671]
[1722015208297,58.12,182.92,182.91,5.4671]
[1722015208489,57.95,182.92,182.91,5.4671]
[1722015208696,12.95,182.92,182.91,5.4671]
[1722015208890,5.4654,182.97,182.92,13.667]
[1722015209076,45.17,182.96,182.92,13.667]
[1722015209281,45.17,182.96,182.92,19.1338]
[1722015210179,12.95,182.93,182.92,19.1338]
[1722015210517,57.95,182.93,182.92,19.1338]
[1722015211696,45.0,182.93,182.92,19.1338]
[1722015211901,57.95,182.93,182.92,19.1338]
[1722015212379,12.95,182.93,182.92,19.1338]
[1722015214290,12.95,182.94,182.92,13.667]
[1722015214496,12.95,182.94,182.93,5.4665]
[1722015214785,12.95,182.95,182.94,19.1312]
[1722015218494,57.95,182.95,182.94,19.1312]
[1722015219302,12.95,182.95,182.94,19.1312]
[1722015221899,57.95,182.95,182.94,19.1312]
[1722015226701,57.95,182.95,182.91,13.6676]
[1722015226901,12.95,182.92,182.91,13.6676]
[1722015227213,57.95,182.92,182.88,35.7772]
[1722015227410,45.0,182.91,182.89,5.4675]
[1722015227922,45.0,182.92,182.89,5.4675]
[1722015228096,12.95,182.9,182.88,25.2817]
[1722015228297,57.95,182.89,182.88,19.1378]
[1722015229617,57.95,182.89,182.88,13.6698]
[1722015230205,90.9,182.89,182.84,20.0415]
[1722015230407,90.9,182.89,182.84,13.6726]
[1722015230408,12.95,182.85,182.84,13.6726]
[1722015230607,57.95,182.85,182.84,13.6726]
[1722015231925,57.95,182.85,182.84,19.1418]
[1722015232394,57.95,182.85,182.81,13.6752]
[1722015232593,12.95,182.82,182.78,13.6775]
[1722015232818,12.95,182.79,182.78,13.6775]
[1722015233432,57.95,182.79,182.78,13.6775]
[1722015233719,57.95,182.79,182.78,19.1485]
[1722015233905,57.95,182.79,182.78,13.6775]
[1722015234104,70.9,182.79,182.78,13.6775]
[1722015234415,91.07,182.79,182.76,5.4716]
[1722015234726,12.95,182.77,182.76,5.4716]
[1722015235232,57.95,182.77,182.76,5.4716]
[1722015236330,12.95,182.77,182.76,5.4716]
[1722015236505,12.95,182.78,182.77,19.1496]
[1722015236708,57.95,182.78,182.77,19.1496]
[1722015238515,57.95,182.78,182.77,13.6783]
[1722015238826,57.95,182.78,182.75,5.4718]
[1722015239018,12.95,182.76,182.75,5.4718]
[1722015239418,12.95,182.76,182.74,19.1525]
[1722015239631,45.0,182.78,182.75,5.4719]
[1722015239807,45.0,182.77,182.75,5.4719]
[1722015240220,45.0,182.77,182.76,5.4716]
[1722015241010,83.4214,182.77,182.71,13.6827]
[1722015241322,12.95,182.72,182.71,19.1558]
[1722015241526,12.95,182.72,182.7,22.783]
[1722015241727,57.95,182.71,182.69,5.4736]
[1722015242035,12.95,182.7,182.68,13.685]
[1722015242224,12.95,182.69,182.68,19.159]
[1722015242809,57.95,182.69,182.66,5.4746]
[1722015243020,12.95,182.67,182.66,5.4746]
[1722015243221,12.95,182.68,182.67,19.1601]
[1722015243519,45.0,182.71,182.69,5.4737]
[1722015243708,45.0,182.72,182.69,5.4737]
[1722015243916,0.17,182.71,182.68,5.474]
[1722015244232,0.17,182.71,182.69,5.4737]
[1722015244430,0.17,182.71,182.67,19.1601]
[1722015244628,5.4734,182.7,182.65,22.7507]
[1722015244933,45.17,182.69,182.65,22.7507]
[1722015245104,45.17,182.69,182.66,5.4746]
[1722015245304,20.0,182.64,182.61,13.6902]
[1722015245504,20.0,182.64,182.59,28.2801]
[1722015245806,45.17,182.63,182.6,5.4763]
[1722015246002,45.0,182.63,182.6,13.6909]
[1722015246230,45.0,182.63,182.61,5.4761]
[1722015246807,45.0,182.63,182.6,13.6909]
[1722015247208,45.0,182.63,182.62,5.4758]
[1722015247409,45.0,182.63,182.57,13.6933]
[1722015247410,20.0,182.62,182.57,13.6933]
[1722015247628,45.0,182.61,182.57,19.1703]
[1722015247833,0.17,182.6,182.57,19.1703]
[1722015248134,45.0,182.61,182.6,5.4764]
[1722015248335,20.0,182.66,182.62,5.4756]
[1722015248631,0.17,182.65,182.62,13.6894]
[1722015248936,0.17,182.65,182.62,19.1652]
[1722015249229,0.17,182.65,182.62,13.6894]
[1722015249437,5.6451,182.65,182.58,13.6921]
[1722015249727,20.0,182.61,182.58,13.6921]
[1722015249939,0.17,182.6,182.58,13.6921]
[1722015250116,5.4759,182.62,182.58,19.1691]
[1722015250314,20.17,182.61,182.58,13.6921]
[1722015250514,0.17,182.61,182.58,19.1691]
[1722015250716,0.17,182.61,182.58,13.6921]
[1722015250917,20.0,182.65,182.58,13.6921]
[1722015251218,0.17,182.64,182.61,13.6902]
[1722015252013,0.17,182.64,182.62,5.4757]
[1722015252640,0.17,182.64,182.61,19.1663]
[1722015252813,0.17,182.64,182.61,13.6902]
[1722015253028,0.17,182.64,182.61,19.166]
[1722015253836,0.17,182.64,182.63,5.4755]
[1722015254041,20.0,182.65,182.62,5.4758]
[1722015255440,0.17,182.64,182.61,13.6902]
[1722015255940,0.17,182.64,182.63,5.4755]
[1722015256147,20.0,182.65,182.63,5.4755]
[1722015256318,20.0,182.65,182.61,13.6902]
[1722015256824,20.0,182.67,182.64,13.688]
[1722015257035,0.17,182.66,182.64,13.688]
[1722015257537,20.0,182.63,182.53,21.7227]
[1722015258142,0.17,182.62,182.58,13.6925]
[1722015258338,0.17,182.62,182.6,5.4762]
[1722015259041,0.17,182.62,182.59,5.4767]
[1722015259244,20.0,182.62,182.58,19.1695]
[1722015259453,20.0,182.6,182.58,13.6925]
[1722015259747,20.0,182.6,182.55,13.6947]
[1722015260039,0.17,182.59,182.55,13.6947]
[1722015260255,20.0,182.58,182.51,13.6972]
[1722015260423,20.0,182.56,182.53,5.4783]
[1722015260623,20.0,182.61,182.55,13.6948]
[1722015260923,0.17,182.6,182.59,5.4767]
[1722015261143,0.17,182.6,182.58,13.6925]
[1722015261341,5.4758,182.62,182.58,13.6925]
[1722015261514,0.17,182.61,182.59,5.4767]
[1722015261713,20.0,182.63,182.59,5.4766]
[1722015261918,0.17,182.62,182.61,5.4761]
[1722015262746,20.0,182.67,182.64,5.4752]
[1722015262916,20.0,182.67,182.65,5.4748]
[1722015263749,20.0,182.67,182.65,13.6872]
[1722015264040,20.0,182.67,182.65,19.162]
[1722015264448,20.0,182.67,182.63,5.4752]
[1722015264948,20.0,182.65,182.62,5.4757]
[1722015265321,20.0,182.65,182.61,13.6896]
[1722015265543,0.17,182.64,182.61,13.6896]
[1722015265842,0.17,182.64,182.63,5.4755]
[1722015266039,0.17,182.64,182.61,13.6896]
[1722015266234,20.0,182.63,182.61,13.6896]
[1722015266430,0.17,182.62,182.61,19.1657]
[1722015267565,20.0,182.67,182.64,5.4752]
[1722015267854,20.0,182.67,182.61,13.6896]
[1722015267855,20.17,182.66,182.61,13.6896]
[1722015268023,20.17,182.66,182.63,5.4754]
[1722015268339,20.17,182.66,182.64,13.688]
[1722015268728,20.17,182.66,182.62,5.4758]
[1722015268932,20.0,182.64,182.6,13.6904]
[1722015269130,25.4752,182.64,182.6,13.6904]
[1722015269344,0.17,182.63,182.6,19.1668]
[1722015269722,20.0,182.62,182.6,19.1668]
[1722015269926,20.0,182.7,182.57,44.67628661]
[1722015270131,26.0477,182.75,182.73,5.4724]
[1722015270345,20.0,182.75,182.74,5.4722]
[1722015270651,20.0,182.75,182.72,13.6814]
[1722015270828,45.95,182.77,182.72,13.6814]
[1722015271037,45.95,182.77,182.74,5.4721]
[1722015271228,45.95,182.77,182.73,5.4725]
[1722015271424,20.0,182.75,182.73,5.4725]
[1722015271648,25.472,182.75,182.7,5.4734]
[1722015271823,20.0,182.73,182.69,19.1578]
[1722015272022,25.4725,182.73,182.69,13.6841]
[1722015272222,0.17,182.72,182.69,13.6841]
[1722015272519,20.0,182.71,182.69,13.6841]
[1722015272954,0.17,182.7,182.68,5.474]
[1722015273323,20.0,182.69,182.66,19.1608]
[1722015273843,0.17,182.68,182.66,19.1608]
[1722015274220,20.0,182.66,182.63,13.6888]
[1722015274453,0.17,182.65,182.64,5.4751]
[1722015274843,0.17,182.65,182.63,19.1642]
[1722015275438,0.17,182.65,182.61,16.2115]
[1722015275439,0.17,182.65,182.61,5.476]
[1722015275631,20.0,182.62,182.6,13.691]
[1722015276026,0.17,182.61,182.6,13.691]
[1722015277053,20.0,182.6,182.57,13.6933]
[1722015277237,20.0,182.6,182.58,5.4769]
[1722015277559,20.0,182.6,182.57,19.1705]
[1722015277560,0.17,182.59,182.57,19.1705]
[1722015278148,20.0,182.58,182.57,13.6933]
[1722015278352,20.0,182.58,182.57,19.1706]
[1722015278653,20.0,182.56,182.53,19.1739]
[1722015278956,0.17,182.55,182.54,5.4781]
[1722015279459,20.0,182.63,182.53,27.3915]
[1722015279636,20.0,182.65,182.54,1.09567254]
[1722015280344,20.0,182.65,182.63,5.4755]
[1722015280751,20.0,182.65,182.62,5.4758]
[1722015280939,20.0,182.63,182.6,19.1665]
[1722015281254,20.0,182.61,182.6,13.6904]
[1722015281731,20.0,182.63,182.6,19.1668]
[1722015281934,0.17,182.62,182.6,19.1668]
[1722015282231,0.17,182.62,182.61,5.4761]
[1722015283553,20.0,182.67,182.63,5.4755]
[1722015283751,0.17,182.66,182.6,13.6904]
[1722015283932,20.0,182.65,182.6,13.6904]
[1722015284550,25.475,182.65,182.6,19.1665]
[1722015284929,0.17,182.64,182.6,19.1665]
[1722015285237,20.0,182.63,182.59,5.4766]
[1722015285438,0.17,182.62,182.59,5.4766]
[1722015286135,0.17,182.62,182.58,6.6117]
[1722015286847,0.17,182.62,182.59,5.4767]
[1722015287028,0.17,182.62,182.6,5.4764]
[1722015289840,0.17,182.62,182.58,6.6117]
[1722015289841,0.17,182.62,182.61,5.4761]
[1722015290544,20.0,182.66,182.63,5.4755]
[1722015290845,0.17,182.65,182.63,5.4755]
[1722015291150,20.0,182.69,182.66,5.4746]
[1722015291332,20.0,182.69,182.65,5.4749]
[1722015291847,20.0,182.69,182.66,5.4745]
[1722015292049,45.95,182.71,182.66,13.686]
[1722015292231,20.0,182.73,182.66,13.686]
[1722015293026,25.95,182.74,182.69,13.6843]
[1722015293231,45.95,182.77,182.73,5.4723]
[1722015293446,20.0,182.77,182.71,13.6823]
[1722015293665,25.4714,182.77,182.72,5.4727]
[1722015293955,20.0,182.77,182.72,5.4727]
[1722015294155,20.0,182.77,182.73,5.4725]
[1722015294361,25.4713,182.77,182.72,5.4728]
[1722015294529,20.0,182.75,182.71,13.6823]
[1722015294729,25.4719,182.75,182.71,13.6823]
[1722015295153,5.4722,182.74,182.69,5.4737]
[1722015295658,0.17,182.73,182.69,5.4737]
[1722015296467,0.17,182.73,182.68,1.09471695]
[1722015296755,0.17,182.73,182.71,5.473]
[1722015296935,45.95,182.77,182.72,5.4728]
[1722015297135,0.17,182.76,182.73,5.4725]
[1722015297347,5.471,182.78,182.73,5.4725]
[1722015297544,0.17,182.77,182.73,5.4725]
[1722015297749,20.0,182.75,182.7,13.6835]
[1722015297955,0.17,182.74,182.7,13.6835]
[1722015298134,0.17,182.74,182.7,19.1569]
[1722015298337,0.17,182.74,182.69,5.4736]
[1722015298736,0.17,182.74,182.69,13.6837]
[1722015299061,0.17,182.74,182.71,5.4731]
[1722015299362,0.17,182.74,182.71,5.473]
[1722015299558,5.4717,182.76,182.71,5.473]
[1722015299743,0.17,182.75,182.71,5.473]
[1722015300259,20.17,182.75,182.69,19.1571]
[1722015300575,5.4725,182.73,182.69,19.1571]
[1722015300759,25.4728,182.72,182.67,6.6361]
[1722015300958,0.17,182.71,182.67,12.1103]
[1722015301254,5.6433,182.71,182.67,6.6361]
[1722015301560,5.4722,182.74,182.69,5.4737]
[1722015301860,5.4722,182.74,182.63,22.882]
[1722015301861,20.17,182.73,182.63,22.882]
[1722015302063,0.17,182.73,182.7,5.4734]
[1722015302426,0.17,182.73,182.69,5.4736]
[1722015302648,0.17,182.73,182.68,13.6844]
[1722015302649,25.4729,182.72,182.68,13.6844]
[1722015302847,45.95,182.74,182.68,13.6844]
[1722015303052,0.17,182.73,182.7,5.4733]
[1722015303255,0.17,182.73,182.68,13.6844]
[1722015303558,20.0,182.72,182.68,13.6844]
[1722015303762,5.4731,182.71,182.66,5.4744]
[1722015303961,0.17,182.7,182.64,13.6877]
[1722015304165,0.17,182.7,182.67,5.4743]
[1722015304466,0.17,182.71,182.68,5.4739]
[1722015304770,0.17,182.71,182.69,5.4735]
[1722015304940,20.0,182.74,182.71,13.6828]
[1722015305144,0.17,182.73,182.72,5.4728]
[1722015305736,20.0,182.75,182.71,19.1559]
[1722015305927,0.17,182.74,182.71,13.6828]
[1722015306640,20.0,182.73,182.67,13.6852]
[1722015306966,0.17,182.72,182.67,13.6852]
[1722015307262,0.17,182.72,182.69,5.4736]
[1722015307645,0.17,182.72,182.68,5.474]
[1722015308038,25.6429,182.72,182.67,19.1594]
[1722015308428,25.6429,182.72,182.63,22.882]
[1722015308429,20.17,182.72,182.63,23.97684251]
[1722015308731,0.17,182.72,182.63,23.97684251]
[1722015308928,20.0,182.72,182.68,5.4739]
[1722015309131,25.4728,182.72,182.67,5.4742]
[1722015309329,0.17,182.71,182.67,5.4742]
[1722015309964,0.17,182.71,182.68,5.4739]
[1722015310141,5.4726,182.73,182.69,5.4737]
[1722015310342,20.0,182.71,182.67,19.1593]
[1722015310734,0.17,182.7,182.67,19.1593]
[1722015311246,0.17,182.7,182.63,22.882]
[1722015311247,20.0,182.68,182.64,19.163]
[1722015311438,20.0,182.66,182.64,19.163]
[1722015311639,20.0,182.66,182.64,13.688]
[1722015311842,0.17,182.65,182.64,13.688]
[1722015312042,0.17,182.65,182.64,19.1632]
[1722015312746,0.17,182.65,182.61,13.6901]
[1722015312942,20.0,182.65,182.62,5.4757]
[1722015313149,20.0,182.65,182.61,19.1661]
[1722015313352,0.17,182.64,182.61,19.1661]
[1722015313556,20.0,182.63,182.61,13.6901]
[1722015314160,0.17,182.62,182.61,13.6901]
[1722015314465,0.17,182.62,182.6,5.4763]
[1722015315371,20.0,182.61,182.58,19.1693]
[1722015315860,0.17,182.6,182.58,19.1693]
[1722015316363,0.17,182.6,182.59,5.4767]
[1722015316943,0.17,182.6,182.58,19.1693]
[1722015317145,0.17,182.6,182.55,28.869]
[1722015317444,0.17,182.6,182.57,5.4772]
[1722015317445,20.0,182.59,182.57,5.4772]
[1722015317860,0.17,182.58,182.56,5.4776]
[1722015318268,20.0,182.57,182.56,5.4776]
[1722015318562,20.17,182.57,182.55,19.1724]
[1722015318765,20.0,182.57,182.55,13.6946]
[1722015318941,0.17,182.56,182.55,13.6946]
[1722015319852,0.17,182.56,182.55,19.1725]
[1722015321258,0.17,182.56,182.55,13.6946]
[1722015321456,0.17,182.56,182.53,5.4785]
[1722015321966,0.17,182.56,182.52,20.0972]
[1722015322168,20.0,182.55,182.52,20.0972]
[1722015322471,0.17,182.54,182.52,25.5759]
[1722015323167,0.17,182.54,182.53,5.4785]
[1722015324462,0.17,182.54,182.52,25.576]
[1722015324669,0.17,182.54,182.52,19.1757]
[1722015325768,0.17,182.54,182.53,5.4785]
[1722015328766,0.17,182.54,182.52,13.6969]
[1722015328767,25.4767,182.59,182.52,14.79265858]
[1722015329069,0.17,182.58,182.52,13.6969]
[1722015329266,25.4763,182.61,182.56,5.4774]
[1722015329567,25.4763,182.61,182.54,13.695]
[1722015329568,20.0,182.59,182.55,5.4779]
[1722015329771,20.0,182.59,182.54,13.695]
[1722015330065,5.4771,182.58,182.54,13.695]
[1722015330249,20.0,182.57,182.54,13.695]
[1722015330649,20.0,182.6,182.55,5.4777]
[1722015330871,20.0,182.6,182.54,13.695]
[1722015331174,20.0,182.6,182.56,5.4774]
[1722015331550,25.4764,182.6,182.56,5.4774]
[1722015331743,25.4764,182.6,182.55,5.4779]
[1722015331947,0.17,182.59,182.56,5.4776]
[1722015332572,0.17,182.59,182.55,5.4779]
[1722015332770,5.6468,182.59,182.54,19.1732]
[1722015332974,20.0,182.58,182.54,19.1732]
[1722015333147,45.0,182.57,182.54,19.1732]
[1722015333349,20.0,182.56,182.51,28.9789]
[1722015333550,45.17,182.55,182.51,28.9789]
[1722015333783,45.17,182.55,182.51,34.458]
[1722015334252,45.17,182.55,182.52,5.4787]
[1722015334661,20.0,182.54,182.52,5.4787]
[1722015334874,45.0,182.53,182.52,5.4787]
[1722015335883,45.0,182.53,182.51,28.9789]
[1722015336376,25.4768,182.59,182.54,5.4781]
[1722015336880,20.0,182.57,182.54,5.4781]
[1722015337059,5.4767,182.59,182.54,5.4781]
[1722015337261,25.4764,182.6,182.56,5.4776]
[1722015337572,20.0,182.6,182.56,5.4776]
[1722015337770,45.17,182.59,182.55,5.4778]
[1722015337964,45.17,182.59,182.54,5.4782]
[1722015338164,20.0,182.58,182.54,5.4782]
[1722015338365,0.17,182.57,182.54,5.4782]
[1722015338784,45.0,182.59,182.53,13.6959]
[1722015339085,0.17,182.58,182.54,5.4781]
[1722015339459,20.17,182.58,182.54,5.4781]
[1722015340158,0.17,182.58,182.55,5.4778]
[1722015340359,5.4762,182.61,182.56,5.4773]
[1722015340559,5.4762,182.61,182.55,13.6942]
[1722015341061,5.4762,182.61,182.55,19.1718]
[1722015341270,5.4762,182.61,182.57,5.4772]
[1722015341478,25.476,182.62,182.57,5.4772]
[1722015341656,20.0,182.6,182.56,5.4773]
[1722015341860,25.4756,182.63,182.57,13.6928]
[1722015342063,20.0,182.63,182.58,5.4768]
[1722015342261,20.0,182.63,182.59,5.4766]
[1722015342575,25.4756,182.63,182.57,19.1699]
[1722015342891,20.0,182.61,182.57,13.6928]
[1722015343094,5.4764,182.6,182.56,6.105]
[1722015343261,20.0,182.61,182.56,6.105]
[1722015343466,0.17,182.6,182.56,6.105]
[1722015343792,5.6467,182.6,182.55,5.4779]
[1722015344106,50.6467,182.6,182.55,5.4779]
[1722015344391,45.17,182.6,182.57,5.4772]
[1722015344578,45.17,182.6,182.56,5.4775]
[1722015345088,50.6465,182.6,182.56,5.4775]
[1722015345294,20.0,182.57,182.52,20.3117]
[1722015345624,45.0,182.56,182.53,5.4784]
[1722015345971,45.0,182.56,182.54,5.4781]
[1722015347673,45.0,182.56,182.55,5.4779]
[1722015347880,45.17,182.56,182.55,5.4779]
[1722015348394,45.17,182.56,182.54,5.4782]
[1722015348697,45.0,182.56,182.52,13.6968]
[1722015348878,0.17,182.55,182.52,13.6968]
[1722015349084,0.17,182.55,182.53,5.4784]
[1722015349505,0.17,182.55,182.53,5.4785]
[1722015350381,20.17,182.55,182.52,13.6968]
[1722015350581,45.0,182.54,182.52,19.1755]
[1722015350900,0.17,182.53,182.52,19.1755]
[1722015351081,0.17,182.53,182.52,13.6968]
[1722015352587,0.17,182.53,182.49,5.4796]
[1722015352802,0.17,182.53,182.48,13.6998]
[1722015352996,0.17,182.53,182.5,5.4792]
[1722015353687,0.17,182.53,182.52,5.4788]
[1722015354005,0.17,182.53,182.51,5.479]
[1722015354210,0.17,182.53,182.5,19.1772]
[1722015355303,13.0,182.51,182.5,19.1772]
[1722015355603,58.0,182.51,182.5,19.1772]
[1722015357096,45.0,182.51,182.5,19.1772]
[1722015358406,13.0,182.53,182.52,5.4788]
[1722015358597,58.0,182.53,182.52,5.4788]
[1722015359110,58.0,182.53,182.51,5.4791]
[1722015359273,45.0,182.52,182.51,5.4791]
[1722015360888,45.0,182.52,182.48,18.4797]
[1722015361091,58.0,182.52,182.49,5.4796]
[1722015361607,45.0,182.52,182.49,5.4796]
[1722015361781,58.0,182.52,182.49,5.4796]
[1722015362598,58.0,182.52,182.5,5.4793]
[1722015362799,58.0,182.52,182.49,5.4796]
[1722015363984,58.0,182.52,182.5,5.4793]
[1722015364301,45.0,182.52,182.5,5.4793]
[1722015364695,58.0,182.52,182.5,5.4793]
[1722015364925,13.0,182.53,182.51,5.4788]
[1722015365394,5.4779,182.55,182.5,5.4794]
[1722015365395,13.0,182.52,182.5,5.4794]
[1722015365597,13.0,182.53,182.5,5.4794]
[1722015365791,13.0,182.53,182.49,14.79454671]
[1722015366001,13.0,182.53,182.51,5.4791]